Workbook

Sheet salim
A2: ت | B2: الاسم | C2: الرقم | D2: رقمه | E2: تاريخه | F2: رقمه | G2: تاريخه | H2: رقمه | I2: تاريخه | J2: المبلغ ($) | K2: رقمه | L2: المحور | M2: الكمية المستلمة (طن) | N2: الكمية | O2: السعر ($) | P2: المبلغ | Q2: الرسوم الكمركية (د.ع) | R2: 10
A3: 1 | B3: سفيان شاكر محمود | C3: 52818 | D3: 2047279 | E3: 2020-03-04 | F3: 8827 | G3: 2020-03-04 | H3: 34950 | I3: 2020-03-04 | J3: 50 | K3: 2020-03-04 | M3: 35180 | N3: 35200 | O3: 44 | P3: 1537800
A4: 2 | B4: عقيل سوري عذاب | C4: 211 | D4: 2047414 | E4: 2020-03-04 | F4: 8809 | G4: 2020-03-11 | H4: 32885 | I4: 2020-03-11 | J4: 50 | K4: 2020-03-11 | M4: 32865 | N4: 32885 | O4: 44 | P4: 1446940
A5: 3 | B5: عصام سعدالله خميس | C5: 17291 | D5: 2047266 | E5: 2020-03-04 | F5: 8850 | G5: 2020-03-12 | H5: 36090 | I5: 2020-03-12 | J5: 50 | K5: 2020-03-12 | M5: 36107 | N5: 36127 | O5: 44 | P5: 1587960
A6: 4 | B6: عامر عباس احمد | C6: 128569 | D6: 2047267 | E6: 2020-03-04 | F6: 8876 | G6: 2020-03-11 | H6: 29460 | I6: 2020-03-11 | J6: 50 | K6: 2020-03-11 | M6: 29622 | N6: 29642 | O6: 44 | P6: 1296240
A7: 5 | B7: عدي محمود صالح | C7: 6461 | D7: 2047424 | E7: 2020-03-04 | F7: 8818 | G7: 2020-03-11 | H7: 34274 | I7: 2020-03-11 | J7: 50 | K7: 2020-03-11 | M7: 34254 | N7: 34274 | O7: 44 | P7: 1508056
A8: 6 | B8: علي سليمان داود | C8: 19337 | D8: 2047306 | E8: 2020-03-04 | F8: 8884 | G8: 2020-03-11 | H8: 35200 | I8: 2020-03-11 | J8: 50 | K8: 2020-03-11 | M8: 35180 | N8: 35200 | O8: 44 | P8: 1548800
A9: 7 | B9: علاء صادق محمد | C9: 23768 | D9: 2047276 | E9: 2020-03-04 | F9: 8826 | G9: 2020-03-11 | H9: 34540 | I9: 2020-03-11 | J9: 50 | K9: 2020-03-11 | M9: 34717 | N9: 34737 | O9: 44 | P9: 1519760 | S9: التقسيم يكون في شيت تقسيم البيانات
A10: 8 | B10: ياسر فرحان محمد | C10: 14688 | D10: 2354600 | E10: 2020-03-04 | F10: 8811 | G10: 2020-03-11 | H10: 33348 | I10: 2020-03-11 | J10: 50 | K10: 2020-03-11 | M10: 33328 | N10: 33348 | O10: 44 | P10: 1467312
A11: 9 | B11: فراس سعدون خميس | C11: 11445 | D11: 2047271 | E11: 2020-03-04 | F11: 8877 | G11: 2020-03-11 | H11: 35440 | I11: 2020-03-11 | J11: 50 | K11: 2020-03-11 | M11: 35643 | N11: 35663 | O11: 44 | P11: 1559360
A12: 10 | B12: 0 | C12: 8021 | D12: 2047425 | E12: 2020-03-04 | F12: 8875 | G12: 2020-03-11 | H12: 34950 | I12: 2020-03-11 | J12: 50 | K12: 2020-03-11 | M12: 35180 | N12: 35200 | O12: 44 | P12: 1537800
L13: المجموع | M13: =SUM(M3:M12) -> 342076 | N13: 342276 | O13: 440 | P13: 15010028
A14: 11 | B14: عميد محسن علي | C14: 31656 | D14: 2047260 | E14: 2020-03-04 | F14: 8806 | G14: 2020-03-11 | H14: 29642 | I14: 2020-03-11 | J14: 50 | K14: 2020-03-11 | M14: 29622 | N14: 29642 | O14: 44 | P14: 1304248
A15: 12 | B15: عمر عارف عسل | C15: 146468 | D15: 2047274 | E15: 2020-03-04 | F15: 8840 | G15: 2020-03-11 | H15: 29410 | I15: 2020-03-11 | J15: 50 | K15: 2020-03-11 | M15: 29622 | N15: 29642 | O15: 44 | P15: 1294040
A16: 13 | B16: عمار حميد حسن | C16: 112140 | D16: 2047419 | E16: 2020-03-04 | F16: 8819 | G16: 2020-03-11 | H16: 29642 | I16: 2020-03-11 | J16: 50 | K16: 2020-03-11 | M16: 29622 | N16: 29642 | O16: 44 | P16: 1304248
A17: 14 | B17: علي عباس محمد | C17: 44857 | D17: 2047421 | E17: 2020-03-04 | F17: 8881 | G17: 2020-03-11 | H17: 30568 | I17: 2020-03-11 | J17: 50 | K17: 2020-03-11 | M17: 30548 | N17: 30568 | O17: 44 | P17: 1344992
A18: 15 | B18: مجيد علوان حماد | C18: 72983 | D18: 2047597 | E18: 2020-03-04 | F18: 8802 | G18: 2020-03-11 | H18: 30050 | I18: 2020-03-11 | J18: 50 | K18: 2020-03-11 | M18: 30085 | N18: 30105 | O18: 44 | P18: 1322200
A19: 16 | B19: عامر غازي فياض | C19: 41994 | D19: 2047270 | E19: 2020-03-04 | F19: 8833 | G19: 2020-03-11 | H19: 36950 | I19: 2020-03-11 | J19: 50 | K19: 2020-03-11 | M19: 37033 | N19: 37053 | O19: 44 | P19: 1625800
A20: 17 | B20: خالد احمد كردي | C20: 23757 | D20: 2047253 | E20: 2020-03-04 | F20: 8805 | G20: 2020-03-11 | H20: 33348 | I20: 2020-03-11 | J20: 50 | K20: 2020-03-11 | M20: 33328 | N20: 33348 | O20: 44 | P20: 1467312
A21: 18 | B21: ناظم طراد حمود | C21: 21496 | D21: 2047277 | E21: 2020-03-04 | F21: 8831 | G21: 2020-03-11 | H21: 30450 | I21: 2020-03-11 | J21: 50 | K21: 2020-03-11 | M21: 30548 | N21: 30568 | O21: 44 | P21: 1339800
A22: 19 | B22: معمر اسماعيل محمد | C22: 558246 | D22: 2047418 | E22: 2020-03-04 | F22: 8882 | G22: 2020-03-11 | H22: 33348 | I22: 2020-03-11 | J22: 50 | K22: 2020-03-11 | M22: 33328 | N22: 33348 | O22: 44 | P22: 1467312
A23: 20 | B23: محمد عبدالله فرحان | C23: 45306 | D23: 2047256 | E23: 2020-03-04 | F23: 8813 | G23: 2020-03-11 | H23: 30568 | I23: 2020-03-11 | J23: 50 | K23: 2020-03-11 | M23: 30548 | N23: 30568 | O23: 44 | P23: 1344992
L24: المجموع | M24: =SUM(M14:M23) -> 314284 | N24: 314484 | O24: 440 | P24: 13814944
A25: 21 | B25: محمد شاكر محمود | C25: 76727 | D25: 2047275 | E25: 2020-03-04 | F25: 8828 | G25: 2020-03-11 | H25: 30470 | I25: 2020-03-11 | J25: 50 | K25: 2020-03-11 | M25: 30548 | N25: 30568 | O25: 44 | P25: 1340680
A26: 22 | B26: محمد خميس جمعه | C26: 93956 | D26: 2047265 | E26: 2020-03-04 | F26: 8832 | G26: 2020-03-11 | H26: 29540 | I26: 2020-03-11 | J26: 50 | K26: 2020-03-11 | M26: 29622 | N26: 29642 | O26: 44 | P26: 1299760
A27: 23 | B27: محمد حسن علي | C27: 62106 | D27: 2047258 | E27: 2020-03-04 | F27: 8878 | G27: 2020-03-11 | H27: 33348 | I27: 2020-03-11 | J27: 50 | K27: 2020-03-11 | M27: 33328 | N27: 33348 | O27: 44 | P27: 1467312
A28: 24 | B28: وليد علوان حماد | C28: 46483 | D28: 2047251 | E28: 2020-03-04 | F28: 8803 | G28: 2020-03-11 | H28: 29642 | I28: 2020-03-11 | J28: 50 | K28: 2020-03-11 | M28: 29622 | N28: 29642 | O28: 44 | P28: 1304248
A29: 25 | B29: وليد خالد خليف | C29: 50880 | D29: 2047261 | E29: 2020-03-04 | F29: 8817 | G29: 2020-03-11 | H29: 35810 | I29: 2020-03-11 | J29: 50 | K29: 2020-03-11 | M29: 36107 | N29: 36127 | O29: 44 | P29: 1575640
A30: 26 | B30: وليد خالد ابراهيم | C30: 557603 | D30: 2047411 | E30: 2020-03-04 | F30: 8804 | G30: 2020-03-11 | H30: 29920 | I30: 2020-03-11 | J30: 50 | K30: 2020-03-11 | M30: 30085 | N30: 30105 | O30: 44 | P30: 1316480
A31: 27 | B31: عاصي جاسم عاصي | C31: 46365 | D31: 2047302 | E31: 2020-03-04 | F31: 8834 | G31: 2020-03-11 | H31: 29630 | I31: 2020-03-11 | J31: 50 | K31: 2020-03-11 | M31: 30085 | N31: 30105 | O31: 44 | P31: 1303720
A32: 28 | B32: وليد غانم عسل | C32: 52627 | D32: 2047269 | E32: 2020-03-04 | F32: 8823 | G32: 2020-03-11 | H32: 30480 | I32: 2020-03-11 | J32: 50 | K32: 2020-03-11 | M32: 30548 | N32: 30568 | O32: 44 | P32: 1341120
A33: 29 | B33: احمد فرحان دحام | C33: 558880 | D33: 2047309 | E33: 2020-03-04 | F33: 8842 | G33: 2020-03-12 | H33: 29580 | I33: 2020-03-12 | J33: 50 | K33: 2020-03-12 | M33: 29622 | N33: 29642 | O33: 44 | P33: 1301520
A34: 30 | B34: غانم فاضل صالح | C34: 14894 | D34: 2047307 | E34: 2020-03-04 | F34: 8847 | G34: 2020-03-12 | H34: 34274 | I34: 2020-03-12 | J34: 50 | K34: 2020-03-12 | M34: 34254 | N34: 34274 | O34: 44 | P34: 1508056
L35: المجموع | M35: =SUM(M25:M34) -> 313821 | N35: 314021 | O35: 440 | P35: 13758536
A36: 31 | B36: مروان بدر احمد | C36: 20597 | D36: 2047308 | E36: 2020-03-04 | F36: 8845 | G36: 2020-03-12 | H36: 29590 | I36: 2020-03-12 | J36: 50 | K36: 2020-03-12 | M36: 29622 | N36: 29642 | O36: 44 | P36: 1301960
A37: 32 | B37: سلمان سليم شلال | C37: 24243 | D37: 2047304 | E37: 2020-03-04 | F37: 8844 | G37: 2020-03-12 | H37: 35663 | I37: 2020-03-12 | J37: 50 | K37: 2020-03-12 | M37: 35643 | N37: 35663 | O37: 44 | P37: 1569172
A38: 33 | B38: محمد صفر اسود | C38: 193800 | D38: 2047280 | E38: 2020-03-04 | F38: 8846 | G38: 2020-03-11 | H38: 29642 | I38: 2020-03-11 | J38: 50 | K38: 2020-03-11 | M38: 29622 | N38: 29642 | O38: 44 | P38: 1304248
A39: 34 | B39: ايمن شهاب حمد | C39: 120180 | D39: 2047281 | E39: 2020-03-04 | F39: 8848 | G39: 2020-03-12 | H39: 29642 | I39: 2020-03-12 | J39: 50 | K39: 2020-03-12 | M39: 29622 | N39: 29642 | O39: 44 | P39: 1304248
A40: 35 | B40: خالد حميد سمير | C40: 15983 | D40: 2047305 | E40: 2020-03-04 | F40: 8843 | G40: 2020-03-12 | H40: 35200 | I40: 2020-03-12 | J40: 50 | K40: 2020-03-12 | M40: 35180 | N40: 35200 | O40: 44 | P40: 1548800
A41: 36 | B41: احمد حالوب فزاع | C41: 378 | D41: 2047278 | E41: 2020-03-04 | F41: 8836 | G41: 2020-03-11 | H41: 30568 | I41: 2020-03-11 | J41: 50 | K41: 2020-03-11 | M41: 30548 | N41: 30568 | O41: 44 | P41: 1344992
A42: 37 | B42: منير غانم عسل | C42: 558752 | D42: 2354596 | E42: 2020-03-04 | F42: 8838 | G42: 2020-03-11 | H42: 29642 | I42: 2020-03-11 | J42: 50 | K42: 2020-03-11 | M42: 29622 | N42: 29642 | O42: 44 | P42: 1304248
A43: 38 | B43: اكرم خميس حسن | C43: 130646 | D43: 2047416 | E43: 2020-03-04 | F43: 8879 | G43: 2020-03-11 | H43: 30568 | I43: 2020-03-11 | J43: 50 | K43: 2020-03-11 | M43: 30548 | N43: 30568 | O43: 44 | P43: 1344992
A44: 39 | B44: احمد عبيد زيدان | C44: 53899 | D44: 2354598 | E44: 2020-03-04 | F44: 8801 | G44: 2020-03-12 | H44: 29642 | I44: 2020-03-12 | J44: 50 | K44: 2020-03-12 | M44: 29622 | N44: 29642 | O44: 44 | P44: 1304248
A45: 40 | B45: احمد ربيع محمد | C45: 50690 | D45: 2047273 | E45: 2020-03-04 | F45: 8825 | G45: 2020-03-11 | H45: 31494 | I45: 2020-03-11 | J45: 50 | K45: 2020-03-11 | M45: 31474 | N45: 31494 | O45: 44 | P45: 1385736
L46: المجموع | M46: =SUM(M36:M45) -> 311503 | N46: 311703 | O46: 440 | P46: 13712644
A47: 41 | B47: احمد خليل محمد | C47: 63924 | D47: 2047272 | E47: 2020-03-04 | F47: 8824 | G47: 2020-03-11 | H47: 29640 | I47: 2020-03-11 | J47: 50 | K47: 2020-03-11 | M47: 29622 | N47: 29642 | O47: 44 | P47: 1304160
A48: 42 | B48: اياد فرحان حمد | C48: 29191 | D48: 2354599 | E48: 2020-03-04 | F48: 8829 | G48: 2020-03-11 | H48: 30360 | I48: 2020-03-11 | J48: 50 | K48: 2020-03-11 | M48: 30548 | N48: 30568 | O48: 44 | P48: 1335840
A49: 43 | B49: احمد محمود عويد | C49: 46014 | D49: 2047255 | E49: 2020-03-04 | F49: 8839 | G49: 2020-03-11 | H49: 34020 | I49: 2020-03-11 | J49: 50 | K49: 2020-03-11 | M49: 34254 | N49: 34274 | O49: 44 | P49: 1496880
A50: 44 | B50: انور طراد حمود | C50: 1729 | D50: 2047252 | E50: 2020-03-04 | F50: 8830 | G50: 2020-03-11 | H50: 30420 | I50: 2020-03-11 | J50: 50 | K50: 2020-03-11 | M50: 30548 | N50: 30568 | O50: 44 | P50: 1338480
A51: 45 | B51: جمعه محمود صالح | C51: 12557 | D51: 2047263 | E51: 2020-03-04 | F51: 8821 | G51: 2020-03-11 | H51: 29610 | I51: 2020-03-11 | J51: 50 | K51: 2020-03-11 | M51: 29622 | N51: 29642 | O51: 44 | P51: 1302840
A52: 46 | B52: جاسم محمد حسن | C52: 146183 | D52: 2047259 | E52: 2020-03-04 | F52: 8880 | G52: 2020-03-11 | H52: 33348 | I52: 2020-03-11 | J52: 50 | K52: 2020-03-11 | M52: 33328 | N52: 33348 | O52: 44 | P52: 1467312
A53: 47 | B53: ثابت محمود زيدان | C53: 8174 | D53: 2047254 | E53: 2020-03-04 | F53: 8812 | G53: 2020-03-11 | H53: 30380 | I53: 2020-03-11 | J53: 50 | K53: 2020-03-11 | M53: 30548 | N53: 30568 | O53: 44 | P53: 1336720
A54: 48 | B54: رشوان رافع صباح | C54: 89866 | D54: 2047415 | E54: 2020-03-04 | F54: 8807 | G54: 2020-03-11 | H54: 29460 | I54: 2020-03-11 | J54: 50 | K54: 2020-03-11 | M54: 29622 | N54: 29642 | O54: 44 | P54: 1296240
A55: 49 | B55: ردام مشرف صباح | C55: 34821 | D55: 2047413 | E55: 2020-03-04 | F55: 8808 | G55: 2020-03-11 | H55: 30410 | I55: 2020-03-11 | J55: 50 | K55: 2020-03-11 | M55: 30548 | N55: 30568 | O55: 44 | P55: 1338040
A56: 50 | B56: ايوب علي حميد | C56: 61658 | D56: 2047264 | E56: 2020-03-04 | F56: 8820 | G56: 2020-03-11 | H56: 30360 | I56: 2020-03-11 | J56: 50 | K56: 2020-03-11 | M56: 30548 | N56: 30568 | O56: 44 | P56: 1335840
L57: المجموع | M57: =SUM(M47:M56) -> 309188 | N57: 309388 | O57: 440 | P57: 13552352
A58: 51 | B58: خالد ربيع محمد | C58: 558765 | D58: 2047262 | E58: 2020-03-04 | F58: 8835 | G58: 2020-03-11 | H58: 29642 | I58: 2020-03-11 | J58: 50 | K58: 2020-03-11 | M58: 29622 | N58: 29642 | O58: 44 | P58: 1304248
A59: 52 | B59: حنين ناجي عبدالرزاق | C59: 19065 | D59: 2047301 | E59: 2020-03-04 | F59: 8814 | G59: 2020-03-11 | H59: 34690 | I59: 2020-03-11 | J59: 50 | K59: 2020-03-11 | M59: 34717 | N59: 34737 | O59: 44 | P59: 1526360
A60: 53 | B60: حامد حماد علي | C60: 25094 | D60: 2047412 | E60: 2020-03-04 | F60: 8810 | G60: 2020-03-11 | H60: 33348 | I60: 2020-03-11 | J60: 50 | K60: 2020-03-11 | M60: 33328 | N60: 33348 | O60: 44 | P60: 1467312
A61: 54 | B61: سعد محمود عويد | C61: 48218 | D61: 2047422 | E61: 2020-03-04 | F61: 8837 | G61: 2020-03-11 | H61: 34240 | I61: 2020-03-11 | J61: 50 | K61: 2020-03-11 | M61: 34254 | N61: 34274 | O61: 44 | P61: 1506560
A62: 55 | B62: رياض احمد مخلف | C62: 52383 | D62: 2047417 | E62: 2020-03-04 | F62: 8883 | G62: 2020-03-11 | H62: 30568 | I62: 2020-03-11 | J62: 50 | K62: 2020-03-11 | M62: 30548 | N62: 30568 | O62: 44 | P62: 1344992
A63: 56 | B63: عبدالجبار حميد زيدان | C63: 63348 | D63: 2047257 | E63: 2020-03-04 | F63: 8815 | G63: 2020-03-11 | H63: 30460 | I63: 2020-03-11 | J63: 50 | K63: 2020-03-11 | M63: 30548 | N63: 30568 | O63: 44 | P63: 1340240
A64: 57 | B64: سيف سعدون خميس | C64: 24923 | D64: 2047268 | E64: 2020-03-04 | F64: 8849 | G64: 2020-03-12 | H64: 34130 | I64: 2020-03-12 | J64: 50 | K64: 2020-03-12 | M64: 34254 | N64: 34274 | O64: 44 | P64: 1501720
A65: 58 | B65: سلام عدنان خيون | C65: 556207 | D65: 2047423 | E65: 2020-03-04 | F65: 8841 | G65: 2020-03-12 | H65: 30500 | I65: 2020-03-12 | J65: 50 | K65: 2020-03-12 | M65: 30548 | N65: 30568 | O65: 44 | P65: 1342000
A66: 59 | B66: سلام حميد مطر | C66: 558629 | D66: 2047303 | E66: 2020-03-04 | F66: 8816 | G66: 2020-03-11 | H66: 29510 | I66: 2020-03-11 | J66: 50 | K66: 2020-03-11 | M66: 29622 | N66: 29642 | O66: 44 | P66: 1298440
A67: 60 | B67: عبدالرحمن احمد حسن | C67: 557493 | D67: 2047420 | E67: 2020-03-04 | F67: 8822 | G67: 2020-03-11 | H67: 29642 | I67: 2020-03-11 | J67: 50 | K67: 2020-03-11 | M67: 29622 | N67: 29642 | O67: 44 | P67: 1304248
L68: المجموع | M68: =SUM(M58:M67) -> 317063 | N68: 317263 | O68: 440 | P68: 13936120
A69: 61 | B69: فراس محمد ابراهيم | C69: 398 | D69: 886688 | E69: 2020-03-12 | F69: 10831 | G69: 2020-03-15 | H69: 29488 | I69: 2020-03-15 | J69: 50 | K69: 2020-03-15 | M69: 29468 | N69: 29488 | O69: 44 | P69: 1297472
L71: المجموع العام | M71: =SUM(M3:M70)/ 2 -> 1922669 | N71: =SUM(N3:N70)/ 2 -> 1923879 | O71: =SUM(O3:O70)/ 2 -> 2662 | P71: =SUM(P3:P70)/ 2 -> 84433360
L72: المجموع العام | M72: =SUM(M3:M70)/ 2 -> 1922669 | N72: =SUM(N3:N70)/ 2 -> 1923879 | O72: =SUM(O3:O70)/ 2 -> 2662 | P72: =SUM(P3:P70)/ 2 -> 84433360

Sheet Taksim
A1: ت | B1: اسم السائق | C1: رقم الحوضية | D1: رقمه | E1: تاريخه | F1: رقمه | G1: تاريخه | H1: رقمه | I1: تاريخه | J1: المبلغ ($) | K1: رقمه | L1: محور النقل | M1: الكمية المستلمة (طن) | N1: الكمية | O1: السعر ($) | P1: أجور النقل | Q1: الرسوم الكمركية (د.ع) | U1: العدد المطلوب
A2: 1 | B2: سفيان شاكر محمود | C2: 52818 | D2: 2047279 | E2: 2020-03-04 | F2: 8827 | G2: 2020-03-04 | H2: 34950 | I2: 2020-03-04 | J2: 50 | K2: 2020-03-04 | M2: 35180 | N2: 35200 | O2: 44 | P2: 1537800 | S2: 10 | U2: `
A3: 2 | B3: عقيل سوري عذاب | C3: 211 | D3: 2047414 | E3: 2020-03-04 | F3: 8809 | G3: 2020-03-11 | H3: 32885 | I3: 2020-03-11 | J3: 50 | K3: 2020-03-11 | M3: 32865 | N3: 32885 | O3: 44 | P3: 1446940
A4: 3 | B4: عصام سعدالله خميس | C4: 17291 | D4: 2047266 | E4: 2020-03-04 | F4: 8850 | G4: 2020-03-12 | H4: 36090 | I4: 2020-03-12 | J4: 50 | K4: 2020-03-12 | M4: 36107 | N4: 36127 | O4: 44 | P4: 1587960
A5: 4 | B5: عامر عباس احمد | C5: 128569 | D5: 2047267 | E5: 2020-03-04 | F5: 8876 | G5: 2020-03-11 | H5: 29460 | I5: 2020-03-11 | J5: 50 | K5: 2020-03-11 | M5: 29622 | N5: 29642 | O5: 44 | P5: 1296240
A6: 5 | B6: عدي محمود صالح | C6: 6461 | D6: 2047424 | E6: 2020-03-04 | F6: 8818 | G6: 2020-03-11 | H6: 34274 | I6: 2020-03-11 | J6: 50 | K6: 2020-03-11 | M6: 34254 | N6: 34274 | O6: 44 | P6: 1508056
A7: 6 | B7: علي سليمان داود | C7: 19337 | D7: 2047306 | E7: 2020-03-04 | F7: 8884 | G7: 2020-03-11 | H7: 35200 | I7: 2020-03-11 | J7: 50 | K7: 2020-03-11 | M7: 35180 | N7: 35200 | O7: 44 | P7: 1548800
A8: 7 | B8: علاء صادق محمد | C8: 23768 | D8: 2047276 | E8: 2020-03-04 | F8: 8826 | G8: 2020-03-11 | H8: 34540 | I8: 2020-03-11 | J8: 50 | K8: 2020-03-11 | M8: 34717 | N8: 34737 | O8: 44 | P8: 1519760
A9: 8 | B9: ياسر فرحان محمد | C9: 14688 | D9: 2354600 | E9: 2020-03-04 | F9: 8811 | G9: 2020-03-11 | H9: 33348 | I9: 2020-03-11 | J9: 50 | K9: 2020-03-11 | M9: 33328 | N9: 33348 | O9: 44 | P9: 1467312
A10: 9 | B10: فراس سعدون خميس | C10: 11445 | D10: 2047271 | E10: 2020-03-04 | F10: 8877 | G10: 2020-03-11 | H10: 35440 | I10: 2020-03-11 | J10: 50 | K10: 2020-03-11 | M10: 35643 | N10: 35663 | O10: 44 | P10: 1559360
A11: 10 | B11: فراس سعدون خميس | C11: 8021 | D11: 2047425 | E11: 2020-03-04 | F11: 8875 | G11: 2020-03-11 | H11: 34950 | I11: 2020-03-11 | J11: 50 | K11: 2020-03-11 | M11: 35180 | N11: 35200 | O11: 44 | P11: 1537800
L12: SUM OF :10 | M12: 342076 | N12: 342276 | P12: 15010028
A13: 12 | B13: عمر عارف عسل | C13: 2301-01-05 | D13: 7505-03-30 | E13: 2020-03-04 | F13: 8840 | G13: 2020-03-11 | H13: 29410 | I13: 2020-03-11 | J13: 50 | K13: 2020-03-11 | M13: 29622 | N13: 29642 | O13: 44 | P13: 1294040
A14: 13 | B14: عمار حميد حسن | C14: 112140 | D14: 2047419 | E14: 2020-03-04 | F14: 8819 | G14: 2020-03-11 | H14: 29642 | I14: 2020-03-11 | J14: 50 | K14: 2020-03-11 | M14: 29622 | N14: 29642 | O14: 44 | P14: 1304248
A15: 14 | B15: علي عباس محمد | C15: 44857 | D15: 2047421 | E15: 2020-03-04 | F15: 8881 | G15: 2020-03-11 | H15: 30568 | I15: 2020-03-11 | J15: 50 | K15: 2020-03-11 | M15: 30548 | N15: 30568 | O15: 44 | P15: 1344992
A16: 15 | B16: مجيد علوان حماد | C16: 72983 | D16: 2047597 | E16: 2020-03-04 | F16: 8802 | G16: 2020-03-11 | H16: 30050 | I16: 2020-03-11 | J16: 50 | K16: 2020-03-11 | M16: 30085 | N16: 30105 | O16: 44 | P16: 1322200
A17: 16 | B17: عامر غازي فياض | C17: 41994 | D17: 2047270 | E17: 2020-03-04 | F17: 8833 | G17: 2020-03-11 | H17: 36950 | I17: 2020-03-11 | J17: 50 | K17: 2020-03-11 | M17: 37033 | N17: 37053 | O17: 44 | P17: 1625800
A18: 17 | B18: خالد احمد كردي | C18: 23757 | D18: 2047253 | E18: 2020-03-04 | F18: 8805 | G18: 2020-03-11 | H18: 33348 | I18: 2020-03-11 | J18: 50 | K18: 2020-03-11 | M18: 33328 | N18: 33348 | O18: 44 | P18: 1467312
A19: 18 | B19: ناظم طراد حمود | C19: 21496 | D19: 2047277 | E19: 2020-03-04 | F19: 8831 | G19: 2020-03-11 | H19: 30450 | I19: 2020-03-11 | J19: 50 | K19: 2020-03-11 | M19: 30548 | N19: 30568 | O19: 44 | P19: 1339800
A20: 19 | B20: معمر اسماعيل محمد | C20: 558246 | D20: 2047418 | E20: 2020-03-04 | F20: 8882 | G20: 2020-03-11 | H20: 33348 | I20: 2020-03-11 | J20: 50 | K20: 2020-03-11 | M20: 33328 | N20: 33348 | O20: 44 | P20: 1467312
A21: 20 | B21: محمد عبدالله فرحان | C21: 45306 | D21: 2047256 | E21: 2020-03-04 | F21: 8813 | G21: 2020-03-11 | H21: 30568 | I21: 2020-03-11 | J21: 50 | K21: 2020-03-11 | M21: 30548 | N21: 30568 | O21: 44 | P21: 1344992
A22: 21 | B22: محمد شاكر محمود | C22: 76727 | D22: 2047275 | E22: 2020-03-04 | F22: 8828 | G22: 2020-03-11 | H22: 30470 | I22: 2020-03-11 | J22: 50 | K22: 2020-03-11 | M22: 30548 | N22: 30568 | O22: 44 | P22: 1340680
L23: SUM OF :10 | M23: 315210 | N23: 315410 | P23: 13851376
A24: 22 | B24: محمد خميس جمعه | C24: 93956 | D24: 2047265 | E24: 2020-03-04 | F24: 8832 | G24: 2020-03-11 | H24: 29540 | I24: 2020-03-11 | J24: 50 | K24: 2020-03-11 | M24: 29622 | N24: 29642 | O24: 44 | P24: 1299760
A25: 23 | B25: محمد حسن علي | C25: 62106 | D25: 2047258 | E25: 2020-03-04 | F25: 8878 | G25: 2020-03-11 | H25: 33348 | I25: 2020-03-11 | J25: 50 | K25: 2020-03-11 | M25: 33328 | N25: 33348 | O25: 44 | P25: 1467312
A26: 24 | B26: وليد علوان حماد | C26: 46483 | D26: 2047251 | E26: 2020-03-04 | F26: 8803 | G26: 2020-03-11 | H26: 29642 | I26: 2020-03-11 | J26: 50 | K26: 2020-03-11 | M26: 29622 | N26: 29642 | O26: 44 | P26: 1304248
A27: 25 | B27: وليد خالد خليف | C27: 50880 | D27: 2047261 | E27: 2020-03-04 | F27: 8817 | G27: 2020-03-11 | H27: 35810 | I27: 2020-03-11 | J27: 50 | K27: 2020-03-11 | M27: 36107 | N27: 36127 | O27: 44 | P27: 1575640
A28: 26 | B28: وليد خالد ابراهيم | C28: 557603 | D28: 2047411 | E28: 2020-03-04 | F28: 8804 | G28: 2020-03-11 | H28: 29920 | I28: 2020-03-11 | J28: 50 | K28: 2020-03-11 | M28: 30085 | N28: 30105 | O28: 44 | P28: 1316480
A29: 27 | B29: عاصي جاسم عاصي | C29: 46365 | D29: 2047302 | E29: 2020-03-04 | F29: 8834 | G29: 2020-03-11 | H29: 29630 | I29: 2020-03-11 | J29: 50 | K29: 2020-03-11 | M29: 30085 | N29: 30105 | O29: 44 | P29: 1303720
A30: 28 | B30: وليد غانم عسل | C30: 52627 | D30: 2047269 | E30: 2020-03-04 | F30: 8823 | G30: 2020-03-11 | H30: 30480 | I30: 2020-03-11 | J30: 50 | K30: 2020-03-11 | M30: 30548 | N30: 30568 | O30: 44 | P30: 1341120
A31: 29 | B31: احمد فرحان دحام | C31: 558880 | D31: 2047309 | E31: 2020-03-04 | F31: 8842 | G31: 2020-03-12 | H31: 29580 | I31: 2020-03-12 | J31: 50 | K31: 2020-03-12 | M31: 29622 | N31: 29642 | O31: 44 | P31: 1301520
A32: 30 | B32: غانم فاضل صالح | C32: 14894 | D32: 2047307 | E32: 2020-03-04 | F32: 8847 | G32: 2020-03-12 | H32: 34274 | I32: 2020-03-12 | J32: 50 | K32: 2020-03-12 | M32: 34254 | N32: 34274 | O32: 44 | P32: 1508056
A33: 31 | B33: مروان بدر احمد | C33: 20597 | D33: 2047308 | E33: 2020-03-04 | F33: 8845 | G33: 2020-03-12 | H33: 29590 | I33: 2020-03-12 | J33: 50 | K33: 2020-03-12 | M33: 29622 | N33: 29642 | O33: 44 | P33: 1301960
L34: SUM OF :10 | M34: 312895 | N34: 313095 | P34: 13719816
A35: 32 | B35: سلمان سليم شلال | C35: 24243 | D35: 2047304 | E35: 2020-03-04 | F35: 8844 | G35: 2020-03-12 | H35: 35663 | I35: 2020-03-12 | J35: 50 | K35: 2020-03-12 | M35: 35643 | N35: 35663 | O35: 44 | P35: 1569172
A36: 33 | B36: محمد صفر اسود | C36: 193800 | D36: 2047280 | E36: 2020-03-04 | F36: 8846 | G36: 2020-03-11 | H36: 29642 | I36: 2020-03-11 | J36: 50 | K36: 2020-03-11 | M36: 29622 | N36: 29642 | O36: 44 | P36: 1304248
A37: 34 | B37: ايمن شهاب حمد | C37: 120180 | D37: 2047281 | E37: 2020-03-04 | F37: 8848 | G37: 2020-03-12 | H37: 29642 | I37: 2020-03-12 | J37: 50 | K37: 2020-03-12 | M37: 29622 | N37: 29642 | O37: 44 | P37: 1304248
A38: 35 | B38: خالد حميد سمير | C38: 15983 | D38: 2047305 | E38: 2020-03-04 | F38: 8843 | G38: 2020-03-12 | H38: 35200 | I38: 2020-03-12 | J38: 50 | K38: 2020-03-12 | M38: 35180 | N38: 35200 | O38: 44 | P38: 1548800
A39: 36 | B39: احمد حالوب فزاع | C39: 378 | D39: 2047278 | E39: 2020-03-04 | F39: 8836 | G39: 2020-03-11 | H39: 30568 | I39: 2020-03-11 | J39: 50 | K39: 2020-03-11 | M39: 30548 | N39: 30568 | O39: 44 | P39: 1344992
A40: 37 | B40: منير غانم عسل | C40: 558752 | D40: 2354596 | E40: 2020-03-04 | F40: 8838 | G40: 2020-03-11 | H40: 29642 | I40: 2020-03-11 | J40: 50 | K40: 2020-03-11 | M40: 29622 | N40: 29642 | O40: 44 | P40: 1304248
A41: 38 | B41: اكرم خميس حسن | C41: 130646 | D41: 2047416 | E41: 2020-03-04 | F41: 8879 | G41: 2020-03-11 | H41: 30568 | I41: 2020-03-11 | J41: 50 | K41: 2020-03-11 | M41: 30548 | N41: 30568 | O41: 44 | P41: 1344992
A42: 39 | B42: احمد عبيد زيدان | C42: 53899 | D42: 2354598 | E42: 2020-03-04 | F42: 8801 | G42: 2020-03-12 | H42: 29642 | I42: 2020-03-12 | J42: 50 | K42: 2020-03-12 | M42: 29622 | N42: 29642 | O42: 44 | P42: 1304248
A43: 40 | B43: احمد ربيع محمد | C43: 50690 | D43: 2047273 | E43: 2020-03-04 | F43: 8825 | G43: 2020-03-11 | H43: 31494 | I43: 2020-03-11 | J43: 50 | K43: 2020-03-11 | M43: 31474 | N43: 31494 | O43: 44 | P43: 1385736
A44: 41 | B44: احمد خليل محمد | C44: 63924 | D44: 2047272 | E44: 2020-03-04 | F44: 8824 | G44: 2020-03-11 | H44: 29640 | I44: 2020-03-11 | J44: 50 | K44: 2020-03-11 | M44: 29622 | N44: 29642 | O44: 44 | P44: 1304160
L45: SUM OF :10 | M45: 311503 | N45: 311703 | P45: 13714844
A46: 42 | B46: اياد فرحان حمد | C46: 29191 | D46: 2354599 | E46: 2020-03-04 | F46: 8829 | G46: 2020-03-11 | H46: 30360 | I46: 2020-03-11 | J46: 50 | K46: 2020-03-11 | M46: 30548 | N46: 30568 | O46: 44 | P46: 1335840
A47: 43 | B47: احمد محمود عويد | C47: 46014 | D47: 2047255 | E47: 2020-03-04 | F47: 8839 | G47: 2020-03-11 | H47: 34020 | I47: 2020-03-11 | J47: 50 | K47: 2020-03-11 | M47: 34254 | N47: 34274 | O47: 44 | P47: 1496880
A48: 44 | B48: انور طراد حمود | C48: 1729 | D48: 2047252 | E48: 2020-03-04 | F48: 8830 | G48: 2020-03-11 | H48: 30420 | I48: 2020-03-11 | J48: 50 | K48: 2020-03-11 | M48: 30548 | N48: 30568 | O48: 44 | P48: 1338480
A49: 45 | B49: جمعه محمود صالح | C49: 12557 | D49: 2047263 | E49: 2020-03-04 | F49: 8821 | G49: 2020-03-11 | H49: 29610 | I49: 2020-03-11 | J49: 50 | K49: 2020-03-11 | M49: 29622 | N49: 29642 | O49: 44 | P49: 1302840
A50: 46 | B50: جاسم محمد حسن | C50: 146183 | D50: 2047259 | E50: 2020-03-04 | F50: 8880 | G50: 2020-03-11 | H50: 33348 | I50: 2020-03-11 | J50: 50 | K50: 2020-03-11 | M50: 33328 | N50: 33348 | O50: 44 | P50: 1467312
A51: 47 | B51: ثابت محمود زيدان | C51: 8174 | D51: 2047254 | E51: 2020-03-04 | F51: 8812 | G51: 2020-03-11 | H51: 30380 | I51: 2020-03-11 | J51: 50 | K51: 2020-03-11 | M51: 30548 | N51: 30568 | O51: 44 | P51: 1336720
A52: 48 | B52: رشوان رافع صباح | C52: 89866 | D52: 2047415 | E52: 2020-03-04 | F52: 8807 | G52: 2020-03-11 | H52: 29460 | I52: 2020-03-11 | J52: 50 | K52: 2020-03-11 | M52: 29622 | N52: 29642 | O52: 44 | P52: 1296240
A53: 49 | B53: ردام مشرف صباح | C53: 34821 | D53: 2047413 | E53: 2020-03-04 | F53: 8808 | G53: 2020-03-11 | H53: 30410 | I53: 2020-03-11 | J53: 50 | K53: 2020-03-11 | M53: 30548 | N53: 30568 | O53: 44 | P53: 1338040
A54: 50 | B54: ايوب علي حميد | C54: 61658 | D54: 2047264 | E54: 2020-03-04 | F54: 8820 | G54: 2020-03-11 | H54: 30360 | I54: 2020-03-11 | J54: 50 | K54: 2020-03-11 | M54: 30548 | N54: 30568 | O54: 44 | P54: 1335840
A55: 51 | B55: خالد ربيع محمد | C55: 558765 | D55: 2047262 | E55: 2020-03-04 | F55: 8835 | G55: 2020-03-11 | H55: 29642 | I55: 2020-03-11 | J55: 50 | K55: 2020-03-11 | M55: 29622 | N55: 29642 | O55: 44 | P55: 1304248
L56: SUM OF :10 | M56: 309188 | N56: 309388 | P56: 13552440
A57: 52 | B57: حنين ناجي عبدالرزاق | C57: 19065 | D57: 2047301 | E57: 2020-03-04 | F57: 8814 | G57: 2020-03-11 | H57: 34690 | I57: 2020-03-11 | J57: 50 | K57: 2020-03-11 | M57: 34717 | N57: 34737 | O57: 44 | P57: 1526360
A58: 53 | B58: حامد حماد علي | C58: 25094 | D58: 2047412 | E58: 2020-03-04 | F58: 8810 | G58: 2020-03-11 | H58: 33348 | I58: 2020-03-11 | J58: 50 | K58: 2020-03-11 | M58: 33328 | N58: 33348 | O58: 44 | P58: 1467312
A59: 54 | B59: سعد محمود عويد | C59: 48218 | D59: 2047422 | E59: 2020-03-04 | F59: 8837 | G59: 2020-03-11 | H59: 34240 | I59: 2020-03-11 | J59: 50 | K59: 2020-03-11 | M59: 34254 | N59: 34274 | O59: 44 | P59: 1506560
A60: 55 | B60: رياض احمد مخلف | C60: 52383 | D60: 2047417 | E60: 2020-03-04 | F60: 8883 | G60: 2020-03-11 | H60: 30568 | I60: 2020-03-11 | J60: 50 | K60: 2020-03-11 | M60: 30548 | N60: 30568 | O60: 44 | P60: 1344992
A61: 56 | B61: عبدالجبار حميد زيدان | C61: 63348 | D61: 2047257 | E61: 2020-03-04 | F61: 8815 | G61: 2020-03-11 | H61: 30460 | I61: 2020-03-11 | J61: 50 | K61: 2020-03-11 | M61: 30548 | N61: 30568 | O61: 44 | P61: 1340240
A62: 57 | B62: سيف سعدون خميس | C62: 24923 | D62: 2047268 | E62: 2020-03-04 | F62: 8849 | G62: 2020-03-12 | H62: 34130 | I62: 2020-03-12 | J62: 50 | K62: 2020-03-12 | M62: 34254 | N62: 34274 | O62: 44 | P62: 1501720
A63: 58 | B63: سلام عدنان خيون | C63: 556207 | D63: 2047423 | E63: 2020-03-04 | F63: 8841 | G63: 2020-03-12 | H63: 30500 | I63: 2020-03-12 | J63: 50 | K63: 2020-03-12 | M63: 30548 | N63: 30568 | O63: 44 | P63: 1342000
A64: 59 | B64: سلام حميد مطر | C64: 558629 | D64: 2047303 | E64: 2020-03-04 | F64: 8816 | G64: 2020-03-11 | H64: 29510 | I64: 2020-03-11 | J64: 50 | K64: 2020-03-11 | M64: 29622 | N64: 29642 | O64: 44 | P64: 1298440
A65: 60 | B65: عبدالرحمن احمد حسن | C65: 557493 | D65: 2047420 | E65: 2020-03-04 | F65: 8822 | G65: 2020-03-11 | H65: 29642 | I65: 2020-03-11 | J65: 50 | K65: 2020-03-11 | M65: 29622 | N65: 29642 | O65: 44 | P65: 1304248
L66: SUM OF :10 | M66: 287441 | N66: 287621 | P66: 12631872
L67: ٍALL SUM | M67: 1860723 | N67: 1861893 | P67: 81711476
